fUST/lending_fUST_20250615
["ID","MTS","AMOUNT","RATE_DAILY","PERIOD"]
[365889422,1749973847950,-151.0,0.00023287,7]
[365889423,1749973847960,-399.173129,0.00023287,2]
[365889424,1749973847969,-593.73,0.00023287,4]
[365889425,1749973847978,-491.34,0.00023287,4]
[365889426,1749973847988,-791.29,0.00023287,4]
[365889427,1749973847998,-151.0,0.00023287,7]
[365889428,1749973848007,-464.31,0.00023287,4]
[365889429,1749973848016,-460.0,0.00023287,4]
[365889430,1749973848026,-151.0,0.00023287,7]
[365889431,1749973848035,-585.89,0.00023287,4]
[365889432,1749973848045,-460.0,0.00023287,2]
[365889433,1749973848055,-460.0,0.00023287,4]
[365889434,1749973848065,-551.73,0.00023287,4]
[365889435,1749973848075,-530.26,0.00023287,4]
[365889436,1749973848085,-630.87,0.00023287,4]
[365889437,1749973848095,-460.0,0.00023287,4]
[365889438,1749973848105,-3017.86,0.00023287,4]
[365889439,1749973848115,-460.0,0.00023287,4]
[365889440,1749973848124,-682.21,0.00023287,4]
[365889441,1749973848134,-460.0,0.00023287,4]
[365889442,1749973848144,-700.15,0.00023287,4]
[365889443,1749973848154,-626.93,0.00023287,4]
[365889444,1749973848164,-2703.63,0.00023287,4]
[365889445,1749973848175,-460.0,0.00023287,4]
[365889446,1749973848185,-3403.6,0.00023287,4]
[365889447,1749973848195,-460.0,0.00023287,4]
[365889448,1749973848205,-460.0,0.00023287,4]
[365889449,1749973848216,-460.0,0.00023287,4]
[365889450,1749973848226,-1228.04,0.00023287,4]
[365889451,1749973848236,-460.0,0.00023287,4]
[365889452,1749973848245,-562.54432323,0.00023287,4]
[365889453,1749973848260,-1587.04,0.00023287,4]
[365889454,1749973848270,-460.0,0.00023287,4]
[365889455,1749973848280,-850.24,0.00023287,4]
[365889456,1749973848291,-478.87,0.00023287,4]
[365889457,1749973848301,-581.61,0.00023287,4]
[365889458,1749973848311,-460.0,0.00023287,4]
[365889459,1749973848320,-1462.49,0.00023287,4]
[365889460,1749973848333,-460.32,0.00023287,4]
[365889461,1749973848343,-460.0,0.00023287,4]
[365889462,1749973848353,-460.0,0.00023287,4]
[365889463,1749973848362,-270.0,0.00023287,4]
[365889464,1749973848372,-460.0,0.00023287,4]
[365889465,1749973848382,-460.0,0.00023287,4]
[365889466,1749973848392,-1747.27,0.00023287,4]
[365889467,1749973848402,-476.89,0.00023287,4]
[365889468,1749973848411,-460.0,0.00023287,4]
[365889469,1749973848422,-460.0,0.00023287,4]
[365889470,1749973848431,-1821.56,0.00023287,4]
[365889471,1749973848441,-460.0,0.00023287,4]
[365889472,1749973848451,-2297.17,0.00023287,4]
[365889473,1749973848461,-460.0,0.00023287,4]
[365889474,1749973848471,-739.49,0.00023287,4]
[365889475,1749973848480,-460.0,0.00023287,4]
[365889476,1749973848490,-460.0,0.00023287,4]
[365889477,1749973848500,-3588.19,0.00023287,4]
[365889478,1749973848509,-460.0,0.00023287,4]
[365889479,1749973848519,-2293.8,0.00023287,4]
[365889480,1749973848529,-1753.48,0.00023287,4]
[365889481,1749973848538,-954.39,0.00023287,4]
[365889482,1749973848548,-1616.78,0.00023287,4]
[365889483,1749973848558,-460.0,0.00023287,4]
[365889484,1749973848568,-652.4,0.00023287,4]
[365889485,1749973848578,-460.0,0.00023287,4]
[365889486,1749973848587,-895.46,0.00023287,4]
[365889487,1749973848597,-500.0,0.00023293,2]
[365889488,1749973848607,-500.0,0.00023295,2]
[365889489,1749973848617,-164.0,0.000233,4]
[365889490,1749973848627,-164.0,0.000233,4]
[365889491,1749973848637,-164.0,0.000233,4]
[365889493,1749973848647,-212.131067,0.000233,7]
[365889495,1749973848657,-212.131061,0.000233,7]
[365889497,1749973848666,-845.25843836,0.000233,3]
[365889499,1749973848677,-229.86375354,0.000233,3]
[365889502,1749973848686,-160.0,0.000233,3]
[365889503,1749973848696,-168.0,0.00023337,2]
[365889505,1749973848706,-500.0,0.00023362,2]
[365889508,1749973848716,-742.09,0.00023367,5]
[365889509,1749973848727,-233.725266,0.00023367,7]
[365889511,1749973848737,-233.725265,0.00023367,7]
[365889513,1749973848746,-191.16713,0.00023367,7]
[365889515,1749973848756,-191.167122,0.00023367,7]
[365889517,1749973848766,-964.0,0.00023375,2]
[365889519,1749973848775,-653.0,0.00023375,2]
[365889521,1749973848786,-2160.0,0.00023375,2]
[365889524,1749973848796,-500.0,0.00023396,2]
[365889526,1749973848807,-151.0,0.00023396,7]
[365889527,1749973848816,-500.0,0.00023406,2]
[365889529,1749973848826,-2157.10173815,0.00023417,9]
[365889531,1749973848836,-500.0,0.00023436,2]
[365889533,1749973848846,-168.0,0.00023449,2]
[365889536,1749973848856,-742.09,0.00023467,6]
[365889537,1749973848865,-4283.92719609,0.00023496,2]
[365889539,1749973848875,-91844.47068014,0.000235,2]
[365889541,1749973848885,-1780.51,0.000235,7]
[365889543,1749973848894,-500.0,0.00023518,2]
[365889545,1749973848904,-1000.0,0.00023521,2]
[365889547,1749973848914,-502.3111618,0.00023521,2]
[365889549,1749973848924,-394.24716771,0.00023521,2]
[365889551,1749973848934,-1200.0,0.00023521,2]
[365889553,1749973848944,-501.2673906,0.00023521,2]
[365889555,1749973848953,-1000.0,0.00023521,2]
[365889557,1749973848962,-151.0,0.00023521,7]
[365889559,1749973848973,-365.0707398,0.00023534,2]
[365889561,1749973848983,-151.0,0.00023536,7]
[365889563,1749973848992,-2157.10173815,0.00023555,9]
[365889565,1749973849002,-207.93432221,0.0002356,2]
[365889567,1749973849012,-151.0,0.0002356,7]
[365889569,1749973849021,-399.173129,0.0002356,2]
[365889571,1749973849032,-3892.55,0.0002356,4]
[365889573,1749973849041,-1572.99,0.0002356,4]
[365889575,1749973849051,-593.73,0.00023561,4]
[365889577,1749973849061,-491.34,0.00023561,4]
[365889579,1749973849070,-791.29,0.00023561,4]
[365889581,1749973849080,-291.84010597,0.00023561,4]
[365889583,1749973849090,-151.0,0.00023561,7]
[365889585,1749973849100,-585.89,0.00023561,4]
[365889587,1749973849110,-460.0,0.00023561,2]
[365889589,1749973849120,-200.0,0.00023561,4]
[365889591,1749973849129,-200.0,0.00023561,4]
[365889604,1749973849255,-200.0,0.00023561,4]
[365889606,1749973849265,-200.0,0.00023561,4]
[365889608,1749973849275,-200.0,0.00023561,4]
[365889610,1749973849285,-200.0,0.00023561,4]
[365889612,1749973849295,-200.0,0.00023561,4]
[365889614,1749973849305,-329.81140776,0.00023561,4]
[365889616,1749973849315,-551.73,0.00023561,4]
[365889618,1749973849325,-530.26,0.00023561,4]
[365889620,1749973849336,-630.87,0.00023561,4]
[365889622,1749973849346,-460.0,0.00023561,4]
[365889624,1749973849355,-3017.86,0.00023561,4]
[365889626,1749973849364,-460.0,0.00023561,4]
[365889628,1749973849375,-682.21,0.00023561,4]
[365889630,1749973849384,-460.0,0.00023561,4]
[365889632,1749973849393,-700.15,0.00023561,4]
[365889633,1749973849402,-626.93,0.00023561,4]
[365889635,1749973849412,-2703.63,0.00023561,4]
[365889637,1749973849423,-460.0,0.00023561,4]
[365889639,1749973849433,-3403.6,0.00023561,4]
[365889641,1749973849442,-460.0,0.00023561,4]
[365889643,1749973849452,-460.0,0.00023561,4]
[365889645,1749973849463,-460.0,0.00023561,4]
[365889646,1749973849472,-1228.04,0.00023561,4]
[365889647,1749973849482,-460.0,0.00023561,4]
[365889648,1749973849491,-1587.04,0.00023561,4]
[365889650,1749973849500,-460.0,0.00023561,4]
[365889652,1749973849510,-850.24,0.00023561,4]
[365889654,1749973849518,-478.87,0.00023561,4]
[365889656,1749973849527,-581.61,0.00023561,4]
[365889658,1749973849536,-460.0,0.00023561,4]
[365889660,1749973849546,-1462.49,0.00023561,4]
[365889662,1749973849555,-460.32,0.00023561,4]
[365889664,1749973849565,-460.0,0.00023561,4]
[365889666,1749973849574,-460.0,0.00023561,4]
[365889668,1749973849583,-460.0,0.00023561,4]
[365889670,1749973849593,-460.0,0.00023561,4]
[365889672,1749973849603,-1747.27,0.00023561,4]
[365889674,1749973849612,-476.89,0.00023561,4]
[365889676,1749973849621,-460.0,0.00023561,4]
[365889677,1749973849630,-460.0,0.00023561,4]
[365889678,1749973849640,-1821.56,0.00023561,4]
[365889680,1749973849649,-460.0,0.00023561,4]
[365889682,1749973849658,-2297.17,0.00023561,4]
[365889684,1749973849667,-441.44472345,0.00023561,4]
[365889686,1749973849677,-739.49,0.00023561,4]
[365889688,1749973849686,-460.0,0.00023561,4]
[365889690,1749973849696,-460.0,0.00023561,4]
[365889691,1749973849706,-3588.19,0.00023561,4]
[365889692,1749973849715,-460.0,0.00023561,4]
[365889693,1749973849726,-2293.8,0.00023561,4]
[365889694,1749973849736,-1753.48,0.00023561,4]
[365889695,1749973849746,-954.39,0.00023561,4]
[365889696,1749973849755,-1616.78,0.00023561,4]
[365889697,1749973849765,-460.0,0.00023561,4]
[365889698,1749973849774,-652.4,0.00023561,4]
[365889699,1749973849784,-460.0,0.00023561,4]
[365889700,1749973849794,-895.46,0.00023561,4]
[365889701,1749973849803,-742.09,0.00023567,2]
[365889702,1749973849814,-500.0,0.0002358,9]
[365889703,1749973849823,-500.0,0.0002358,9]
[365889704,1749973849832,-151.0,0.000236,8]
[365889705,1749973849842,-1002.392453,0.000236,2]
[365889706,1749973849851,-168.0,0.00023605,2]
[365889707,1749973849861,-244.10651232,0.00023616,3]
[365889708,1749973849871,-2000.0,0.00023644,2]
[365889709,1749973849881,-742.09,0.00023667,2]
[365889710,1749973849891,-168.0,0.00023675,2]
[365889711,1749973849900,-338.0,0.00023677,2]
[365889712,1749973849910,-500.0000009,0.0002368,2]
[365889713,1749973849919,-151.0,0.0002368,7]
[365889714,1749973849929,-399.173128,0.0002368,2]
[365889715,1749973849939,-5796.62974332,0.00023687,2]
[365889716,1749973849948,-4128.14442421,0.00023687,2]
[365889717,1749973849957,-2157.10173815,0.00023693,9]
[365889718,1749973849967,-500.0,0.00023694,2]
[365889719,1749973849977,-2000.0,0.000237,3]
[365889720,1749973849986,-29967.20966584,0.000237,7]
[365889721,1749973850127,-399.55764991,0.00022191,4]
[365889722,1749973850139,-401.13167193,0.00022191,4]
[365889723,1749973852395,-340.71668872,0.00020599,2]
[365889725,1749973922062,-150.98954777,0.00020599,2]
[365889726,1749973931534,-155.98047869,0.00020599,2]
[365889727,1749973932755,-169.94677496,0.00020599,2]
[365889728,1749973952472,2953.0,0.0002465,120]
[365889729,1749973990091,178.957353,0.00019684,2]
[365889730,1749973996460,10000.0,0.00024,120]
[365889731,1749974006977,-320.7242476,0.00020164,2]
[365889732,1749974035623,5000.0,0.0002,2]
[365889733,1749974051068,3468.34219553,0.0002,2]
[365889734,1749974051092,1531.65780447,0.0002,2]
[365889735,1749974051792,-179.2757524,0.00020164,2]
[365889737,1749974055138,305.2603821,0.00019695,2]
[365889738,1749974068410,-186.61239845,0.00020418,2]
[365889745,1749974131412,-2782.0,0.00020418,2]
[365889746,1749974136733,-183.2082641,0.00020418,2]
[365889749,1749974163127,9234.3595948,0.00019657,2]
[365889750,1749974201191,-1069.0,0.00020418,2]
[365889752,1749974231437,-285.27418338,0.00020164,2]
[365889753,1749974257505,5000.0,0.0002,2]
[365889754,1749974258128,-214.72581662,0.00020164,2]
[365889756,1749974270539,-300.0,0.00020523,2]
[365889757,1749974270562,-300.0,0.00020524,2]
[365889758,1749974270585,-391.50747294,0.00020524,2]
[365889759,1749974270607,-535.87282639,0.00020524,2]
[365889760,1749974270630,-500.0,0.00020524,2]
[365889761,1749974270654,-500.0,0.00020524,2]
[365889762,1749974270676,-352.31790567,0.00020524,2]
[365889763,1749974270698,-444.44792709,0.00020524,2]
[365889764,1749974270720,-491.88350337,0.00020524,2]
[365889765,1749974270744,-500.0,0.00020524,2]
[365889766,1749974270768,-500.0,0.00020524,2]
[365889767,1749974270791,-186.36916042,0.00020524,2]
[365889768,1749974270814,-500.0,0.00020524,2]
[365889769,1749974270838,-500.0,0.00020524,2]
[365889770,1749974270859,-500.0,0.00020524,2]
[365889771,1749974270883,-500.0,0.00020524,2]
[365889772,1749974270904,-500.0,0.00020524,2]
[365889773,1749974270927,-500.0,0.00020524,2]
[365889774,1749974270949,-500.0,0.00020524,2]
[365889775,1749974270973,-500.0,0.00020524,2]
[365889776,1749974270996,-500.0,0.00020524,2]
[365889777,1749974271020,-500.0,0.00020524,2]
[365889778,1749974271048,-500.0,0.00020524,2]
[365889779,1749974271071,-616.70632309,0.00020524,2]
[365889780,1749974271094,-500.0,0.00020524,2]
[365889781,1749974271116,-317.89488103,0.00020524,2]
[365889782,1749974334817,-1078.0,0.00020221,2]
[365889784,1749974379286,246.13298463,0.00019314,2]
[365889786,1749974424603,2139.7,0.00024658,120]
[365889787,1749974432433,200.0,0.00024048,120]
[365889789,1749974458746,1772.596859,0.0002,2]
[365889790,1749974458775,3227.403141,0.0002,2]
[365889791,1749974474324,5000.0,0.0002,2]
[365889792,1749974489605,5000.0,0.0002,2]
[365889793,1749974493032,345.4012063,0.00019524,2]
[365889794,1749974505716,4517.2032777,0.0002,2]
[365889795,1749974505741,482.7967223,0.0002,2]
[365889796,1749974521411,5000.0,0.0002,2]
[365889797,1749974532249,4001.69,0.00025007,60]
[365889798,1749974537444,5000.0,0.0002,2]
[365889801,1749974551081,200.0,0.00024034,120]
[365889802,1749974552495,5000.0,0.0002,2]
[365889803,1749974568039,2607.2109027,0.0002,2]
[365889804,1749974568066,2392.7890973,0.0002,2]
[365889805,1749974585293,5000.0,0.0002,2]
[365889806,1749974602509,5000.0,0.0002,2]
[365889807,1749974611478,200.0,0.00023919,120]
[365889808,1749974618715,5000.0,0.0002,2]
[365889809,1749974634576,-500.0,0.00020164,2]
[365889810,1749974634788,697.2185277,0.0002,2]
[365889811,1749974634812,4302.7814723,0.0002,2]
[365889812,1749974636155,-217.19825329,0.00020423,2]
[365889813,1749974636178,-267.35103349,0.00020424,2]
[365889814,1749974636200,-15.45071322,0.0002052,2]
[365889815,1749974638300,-284.54928678,0.0002052,2]
[365889816,1749974638324,-215.45071322,0.00020521,2]
[365889818,1749974639555,-69.82347016,0.00020521,2]
[365889819,1749974639582,-430.17652984,0.00020521,2]
[365889820,1749974640571,-69.82347016,0.00020521,2]
[365889821,1749974640599,-430.17652984,0.00020521,2]
[365889822,1749974641624,-69.82347016,0.00020521,2]
[365889823,1749974641649,-430.17652984,0.00020521,2]
[365889824,1749974642643,-69.82347016,0.00020521,2]
[365889825,1749974642669,-430.17652984,0.00020521,2]
[365889826,1749974643601,-300.0,0.0002052,2]
[365889827,1749974643628,-69.82347016,0.00020521,2]
[365889828,1749974643656,-130.17652984,0.00020521,2]
[365889829,1749974644583,-369.82347016,0.00020521,2]
[365889830,1749974644609,-130.17652984,0.00020521,2]
[365889831,1749974645795,-369.82347016,0.00020521,2]
[365889832,1749974645822,-130.17652984,0.00020521,2]
[365889833,1749974646729,-369.82347016,0.00020521,2]
[365889834,1749974646755,-130.17652984,0.00020521,2]
[365889835,1749974647872,-369.82347016,0.00020521,2]
[365889836,1749974647899,-130.17652984,0.00020521,2]
[365889837,1749974648983,-369.82347016,0.00020521,2]
[365889838,1749974649009,-130.17652984,0.00020521,2]
[365889839,1749974650157,-275.7810996,0.00020521,2]
[365889840,1749974650184,-224.2189004,0.00020521,2]
[365889841,1749974651228,-500.0,0.00020316,2]
[365889842,1749974652275,-500.0,0.00020316,2]
[365889843,1749974653327,-500.0,0.00020316,2]
[365889844,1749974654597,-500.0,0.00020316,2]
[365889845,1749974655826,-500.0,0.00020316,2]
[365889846,1749974657033,-500.0,0.00020316,2]
[365889847,1749974658738,-500.0,0.00020316,2]
[365889848,1749974659966,-500.0,0.00020316,2]
[365889850,1749974671332,200.0,0.00024091,120]
[365889851,1749974718782,-500.0,0.00020164,2]
[365889852,1749974719993,-500.0,0.00020316,2]
[365889853,1749974721013,-500.0,0.00020316,2]
[365889854,1749974721954,-178.23402232,0.00020422,2]
[365889855,1749974721978,-321.76597768,0.00020519,2]
[365889856,1749974722960,-500.0,0.00020519,2]
[365889857,1749974723915,-378.23402232,0.00020519,2]
[365889858,1749974723941,-121.76597768,0.0002052,2]
[365889859,1749974724883,-378.23402232,0.0002052,2]
[365889860,1749974724910,-121.76597768,0.0002052,2]
[365889861,1749974725999,-378.23402232,0.0002052,2]
[365889862,1749974726023,-121.76597768,0.0002052,2]
[365889863,1749974727075,-378.23402232,0.0002052,2]
[365889864,1749974727100,-121.76597768,0.0002052,2]
[365889865,1749974728059,-378.23402232,0.0002052,2]
[365889866,1749974728086,-121.76597768,0.0002052,2]
[365889867,1749974731214,-378.23402232,0.0002052,2]
[365889868,1749974731240,-121.76597768,0.0002052,2]
[365889869,1749974732449,-378.23402232,0.0002052,2]
[365889870,1749974732475,-121.76597768,0.0002052,2]
[365889871,1749974733390,-378.23402232,0.0002052,2]
[365889872,1749974733415,-121.76597768,0.0002052,2]
[365889873,1749974734347,-378.23402232,0.0002052,2]
[365889874,1749974734374,-121.76597768,0.0002052,2]
[365889875,1749974734405,-378.23402232,0.0002052,2]
[365889876,1749974734431,-121.76597768,0.0002052,2]
[365889877,1749974735666,-378.23402232,0.0002052,2]
[365889878,1749974735692,-121.76597768,0.0002052,2]
[365889879,1749974736695,-117.0327749,0.0002052,2]
[365889880,1749974736721,-382.9672251,0.0002052,2]
[365889881,1749974737875,-117.0327749,0.0002052,2]
[365889882,1749974737902,-382.9672251,0.0002052,2]
[365889883,1749974738983,-117.0327749,0.0002052,2]
[365889884,1749974739008,-345.49161793,0.0002052,2]
[365889885,1749974739032,-37.47560717,0.0002052,2]
[365889886,1749974740260,-462.52439283,0.0002052,2]
[365889887,1749974740286,-37.47560717,0.0002052,2]
[365889888,1749974741364,-462.52439283,0.0002052,2]
[365889889,1749974741389,-37.47560717,0.0002052,2]
[365889892,1749974786017,215.082249,0.00019905,2]
[365889893,1749974832114,-190.04847162,0.00020421,2]
[365889894,1749974832138,-300.0,0.00020519,2]
[365889895,1749974832163,-300.0,0.00020519,2]
[365889896,1749974832188,-335.834,0.0002052,2]
[365889897,1749974832210,-176.069,0.0002052,2]
[365889898,1749974832233,-259.16721952,0.0002052,2]
[365889899,1749974838095,-128.00771163,0.0002052,2]
[365889900,1749974838119,-430.00926482,0.0002052,2]
[365889901,1749974838142,-500.0,0.0002052,2]
[365889902,1749974838165,-498.32431312,0.0002052,2]
[365889903,1749974842136,-169.7854936,0.00020344,2]
[365889904,1749974842157,-3.87893692,0.0002052,2]
[365889905,1749974842178,-500.0,0.0002052,2]
[365889906,1749974842204,-192.01564203,0.0002052,2]
[365889907,1749974842224,-340.16559246,0.0002052,2]
[365889908,1749974842386,-154.77659422,0.0002052,2]
[365889909,1749974842409,-237.37349074,0.00020521,2]
[365889910,1749974842433,-2206.6923579,0.00020521,2]
[365889911,1749974842456,-2206.6923579,0.00020521,2]
[365889912,1749974842480,-2206.6923579,0.00020521,2]
[365889913,1749974842504,-1134.48590595,0.00020521,2]
[365889914,1749974843107,-1072.20645195,0.00020521,2]
[365889915,1749974843133,-2060.04618763,0.00020521,2]
[365889916,1749974844868,184.178323,0.00013699,2]
[365889918,1749974851181,200.0,0.0002419,120]
[365889919,1749974852091,-184.178323,0.00020187,2]
[365889920,1749974852117,-146.64617027,0.00020521,2]
[365889921,1749974852144,-2206.6923579,0.00020521,2]
[365889922,1749974852169,-2206.6923579,0.00020521,2]
[365889923,1749974852192,-2206.6923579,0.00020521,2]
[365889924,1749974852219,-0.00361504,0.00020521,2]
[365889925,1749974904405,177.32,0.00017996,2]
[365889926,1749974909703,5000.0,0.0002,2]
[365889927,1749974926042,5000.0,0.0002,2]
[365889928,1749974942446,3210.6455807,0.0002,2]
[365889929,1749974942475,1789.3544193,0.0002,2]
[365889930,1749974958848,5000.0,0.0002,2]
[365889932,1749974971533,200.0,0.00024457,120]
[365889933,1749974973856,1334.1071099,0.00019549,2]
[365889934,1749974975478,5000.0,0.0002,2]
[365889938,1749974992971,4966.5460958,0.0002,2]
[365889939,1749974992997,33.4539042,0.0002,2]
[365889940,1749975003746,335.29400924,0.000189,2]
[365889941,1749975009897,5000.0,0.0002,2]
[365889943,1749975025321,5000.0,0.0002,2]
[365889978,1749975032896,-500.0,0.00020164,2]
[365889979,1749975032907,-247.09739501,0.00020294,2]
[365889980,1749975032917,-228.8972287,0.00020363,2]
[365889981,1749975032926,-223.0,0.00020519,2]
[365889982,1749975032935,-300.0,0.00020519,2]
[365889983,1749975032945,-1200.0,0.00020519,2]
[365889984,1749975032955,-158.29450426,0.00020519,2]
[365889985,1749975032964,-500.0,0.00020519,2]
[365889986,1749975032973,-193.1998614,0.00020519,2]
[365889987,1749975032984,-1510.2375715,0.00020524,2]
[365889988,1749975032995,-1381.78326598,0.00020524,2]
[365889989,1749975033007,-1311.62358673,0.00020524,2]
[365889990,1749975033017,-168.0,0.00020526,2]
[365889991,1749975033027,-168.0,0.00020625,2]
[365889992,1749975033036,-166.16144352,0.00020628,2]
[365889993,1749975033046,-20.90585551,0.00020628,2]
[365889994,1749975033057,-2201.8591333,0.00020628,2]
[365889995,1749975033067,-2222.76498881,0.00020628,2]
[365889996,1749975033076,-2222.76498881,0.00020628,2]
[365889997,1749975033086,-2222.76498881,0.00020628,2]
[365889998,1749975033096,-2222.76498881,0.00020628,2]
[365889999,1749975033106,-2222.76498881,0.00020628,2]
[365890000,1749975033115,-2222.76498881,0.00020628,2]
[365890001,1749975033124,-168.0,0.00020629,2]
[365890002,1749975033134,-168.0,0.00020744,2]
[365890003,1749975033144,-2124.59,0.00021011,2]
[365890004,1749975033153,-971.46849599,0.00021208,2]
[365890005,1749975033163,-168.0,0.00021534,2]
[365890006,1749975033173,-168.0,0.00021568,2]
[365890007,1749975033183,-245.31,0.00021689,2]
[365890008,1749975033193,-1007.445396,0.000217,2]
[365890009,1749975033203,-464.57018545,0.00021788,2]
[365890010,1749975033212,-168.0,0.00021797,2]
[365890011,1749975033222,-3480.64135153,0.00021817,2]
[365890012,1749975033232,-500.0,0.00021898,2]
[365890013,1749975033242,-500.0,0.000219,2]
[365890014,1749975033252,-2098.80716074,0.000219,6]
[365890015,1749975033262,-502.19974442,0.000219,2]
[365890016,1749975033272,-460.48953065,0.000219,2]
[365890017,1749975033281,-177.9,0.00021907,10]
[365890018,1749975033291,-269.1933407,0.00021917,4]
[365890019,1749975033302,-430.0,0.00021917,4]
[365890020,1749975033311,-336.89014251,0.00021917,4]
[365890021,1749975033322,-460.0,0.00021917,4]
[365890022,1749975033332,-388.93617758,0.00021917,4]
[365890023,1749975033342,-460.0,0.00021917,4]
[365890024,1749975033352,-460.0,0.00021917,4]
[365890025,1749975033362,-460.0,0.00021917,4]
[365890026,1749975033372,-430.0,0.00021917,4]
[365890027,1749975033381,-400.0,0.00021917,4]
[365890028,1749975033391,-460.0,0.00021917,4]
[365890029,1749975033400,-460.0,0.00021917,4]
[365890030,1749975033410,-460.0,0.00021917,4]
[365890031,1749975033419,-430.0,0.00021917,4]
[365890032,1749975033428,-460.0,0.00021917,4]
[365890033,1749975033438,-437.94082265,0.00021917,4]
[365890034,1749975033448,-440.0,0.00021917,4]
[365890035,1749975033457,-442.68032576,0.00021917,4]
[365890036,1749975033466,-460.0,0.00021917,4]
[365890037,1749975033476,-460.0,0.00021917,4]
[365890038,1749975033486,-379.44324504,0.00021917,4]
[365890039,1749975033495,-460.0,0.00021917,4]
[365890040,1749975033505,-460.0,0.00021917,4]
[365890041,1749975033514,-460.0,0.00021917,4]
[365890042,1749975033523,-460.0,0.00021917,4]
[365890043,1749975033532,-449.00145525,0.00021917,4]
[365890044,1749975033542,-460.0,0.00021917,4]
[365890045,1749975033552,-451.98657689,0.00021917,4]
[365890046,1749975033561,-579.98,0.00021917,4]
[365890047,1749975033571,-441.73447325,0.00021917,4]
[365890048,1749975033581,-435.93408426,0.00021917,4]
[365890049,1749975033590,-476.02,0.00021917,4]
[365890050,1749975033600,-179.8747037,0.00021917,4]
[365890051,1749975033611,-430.0,0.00021917,4]
[365890052,1749975033620,-460.0,0.00021917,4]
[365890053,1749975033630,-493.47501272,0.00021917,4]
[365890054,1749975033640,-540.15252427,0.00021917,4]
[365890055,1749975033649,-460.0,0.00021917,4]
[365890056,1749975033658,-664.77,0.00021917,4]
[365890057,1749975033668,-430.0,0.00021917,4]
[365890058,1749975033678,-460.0,0.00021917,4]
[365890059,1749975033687,-460.0,0.00021917,4]
[365890060,1749975033698,-430.0,0.00021917,4]
[365890061,1749975033707,-430.0,0.00021917,4]
[365890062,1749975033717,-441.95636161,0.00021917,4]
[365890063,1749975033726,-436.61533083,0.00021917,4]
[365890064,1749975033735,-319.61778017,0.00021917,4]
[365890065,1749975033746,-430.0,0.00021917,4]
[365890066,1749975033755,-460.0,0.00021917,4]
[365890067,1749975033765,-460.0,0.00021917,4]
[365890068,1749975033776,-390.0,0.00021917,4]
[365890069,1749975033785,-443.08937843,0.00021917,4]
[365890070,1749975033795,-430.0,0.00021917,4]
[365890071,1749975033804,-363.25502656,0.00021917,4]
[365890072,1749975033814,-471.68886244,0.00021917,4]
[365890073,1749975033823,-460.0,0.00021917,4]
[365890074,1749975033833,-442.12365908,0.00021917,4]
[365890075,1749975033842,-400.0,0.00021917,4]
[365890076,1749975033851,-460.0,0.00021917,4]
[365890077,1749975033861,-460.0,0.00021917,4]
[365890078,1749975033870,-473.11208452,0.00021917,2]
[365890079,1749975033880,-443.61368992,0.00021917,4]
[365890080,1749975033889,-449.80827875,0.00021917,4]
[365890081,1749975033899,-460.0,0.00021917,4]
[365890082,1749975033908,-460.0,0.00021917,4]
[365890083,1749975033917,-214.26937852,0.00021917,4]
[365890084,1749975033927,-460.0,0.00021917,4]